[Event "Titled Tuesday Blitz December 14 2021"]
[White "Jobava, Baadur"]
[Black "Petesch, Gabriel"]
[WhiteFideId "13601520"]
[BlackFideId "2032465"]
[WhiteElo "2689"]
[BlackElo "2374"]
[Result "0-1"]
[Round "02"]
[TimeControl "180+1"]
[Date "2021.12.14"]
[WhiteClock "0:00:27"]
[BlackClock "0:00:12"]

1. b3 {[%clk 0:03:00]}  b6 {[%clk 0:02:54]} 2. Bb2 {[%clk 0:03:01]}  Bb7 {[%clk 0:02:54]} 3. e3 {[%clk 0:03:02]}  Nc6 {[%clk 0:02:52]} 4. d4 {[%clk 0:03:03]}  e6 {[%clk 0:02:51]} 5. c4 {[%clk 0:03:02]}  Nf6 {[%clk 0:02:50]} 6. Nc3 {[%clk 0:03:02]}  Be7 {[%clk 0:02:45]} 7. Nf3 {[%clk 0:03:02]}  O-O {[%clk 0:02:44]} 8. Bd3 {[%clk 0:03:02]}  Nb4 {[%clk 0:02:31]} 9. Bb1 {[%clk 0:03:01]}  d5 {[%clk 0:02:29]} 10. O-O {[%clk 0:03:01]}  c5 {[%clk 0:02:24]} 11. Qe2 {[%clk 0:02:56]}  Ne4 {[%clk 0:02:21]} 12. Rd1 {[%clk 0:02:56]}  cxd4 {[%clk 0:02:10]} 13. exd4 {[%clk 0:02:54]}  Nxc3 {[%clk 0:02:04]} 14. Bxc3 {[%clk 0:02:54]}  Nc6 {[%clk 0:02:04]} 15. Bd3 {[%clk 0:02:42]}  Rc8 {[%clk 0:02:00]} 16. Rac1 {[%clk 0:02:42]}  Ba3 {[%clk 0:01:59]} 17. Bb2 {[%clk 0:02:41]}  Bxb2 {[%clk 0:01:57]} 18. Qxb2 {[%clk 0:02:42]}  Qf6 {[%clk 0:01:51]} 19. h3 {[%clk 0:02:39]}  Rfd8 {[%clk 0:01:51]} 20. cxd5 {[%clk 0:02:28]}  Nb4 {[%clk 0:01:21]} 21. Be4 {[%clk 0:01:57]}  Qf4 {[%clk 0:01:09]} 22. Re1 {[%clk 0:01:32]}  Bxd5 {[%clk 0:00:41]} 23. g3 {[%clk 0:01:31]}  Qh6 {[%clk 0:00:28]} 24. Rxc8 {[%clk 0:01:26]}  Rxc8 {[%clk 0:00:29]} 25. Kg2 {[%clk 0:01:24]}  Bxe4 {[%clk 0:00:25]} 26. Rxe4 {[%clk 0:01:25]}  Rc2 {[%clk 0:00:25]} 27. Qb1 {[%clk 0:01:18]}  Qg6 {[%clk 0:00:15]} 28. Re1 {[%clk 0:00:51]}  Nd3 {[%clk 0:00:16]} 29. Qxc2 {[%clk 0:00:31]}  Nf4+ {[%clk 0:00:16]} 30. Kg1 {[%clk 0:00:29]}  Qxc2 {[%clk 0:00:17]} 31. gxf4 {[%clk 0:00:30]}  Qxa2 {[%clk 0:00:14]} 32. Re3 {[%clk 0:00:30]}  Qc2 {[%clk 0:00:12]} 33. Kg2 {[%clk 0:00:29]}  f6 {[%clk 0:00:12]} 34. Rxe6 {[%clk 0:00:26]}  Kf7 {[%clk 0:00:12]} 35. Re7+ {[%clk 0:00:27]}  Kxe7 {[%clk 0:00:12]} 0-1


[Site "https://www.chess.com"]

[Event "Titled Tuesday Blitz December 14 2021"]
[White "Kamsky, Gata"]
[Black "Lewtak, Damian"]
[WhiteFideId "2000024"]
[BlackFideId "1141724"]
[WhiteElo "2645"]
[BlackElo "2203"]
[Result "1-0"]
[Round "02"]
[TimeControl "180+1"]
[Date "2021.12.14"]
[WhiteClock "0:00:46"]
[BlackClock "0:00:12"]

1. e4 {[%clk 0:03:00]}  b6 {[%clk 0:02:59]} 2. d4 {[%clk 0:02:52]}  Bb7 {[%clk 0:02:59]} 3. Bd3 {[%clk 0:02:51]}  e6 {[%clk 0:02:58]} 4. Nf3 {[%clk 0:02:51]}  g6 {[%clk 0:02:56]} 5. O-O {[%clk 0:02:50]}  Bg7 {[%clk 0:02:56]} 6. c3 {[%clk 0:02:50]}  Ne7 {[%clk 0:02:56]} 7. Re1 {[%clk 0:02:50]}  O-O {[%clk 0:02:55]} 8. Nbd2 {[%clk 0:02:50]}  d6 {[%clk 0:02:53]} 9. Nf1 {[%clk 0:02:50]}  Nd7 {[%clk 0:02:54]} 10. Ng3 {[%clk 0:02:50]}  a5 {[%clk 0:02:38]} 11. a4 {[%clk 0:02:49]}  e5 {[%clk 0:02:36]} 12. Bb5 {[%clk 0:02:46]}  c6 {[%clk 0:02:16]} 13. Bf1 {[%clk 0:02:43]}  Qc7 {[%clk 0:02:10]} 14. Bg5 {[%clk 0:02:40]}  f6 {[%clk 0:02:05]} 15. Bd2 {[%clk 0:02:35]}  Rad8 {[%clk 0:01:59]} 16. Qb3+ {[%clk 0:02:32]}  Kh8 {[%clk 0:01:56]} 17. Rad1 {[%clk 0:02:31]}  d5 {[%clk 0:01:50]} 18. h4 {[%clk 0:02:22]}  c5 {[%clk 0:01:46]} 19. h5 {[%clk 0:02:20]}  dxe4 {[%clk 0:01:27]} 20. Nxe4 {[%clk 0:02:17]}  cxd4 {[%clk 0:01:14]} 21. cxd4 {[%clk 0:02:08]}  Bd5 {[%clk 0:01:05]} 22. Qa3 {[%clk 0:02:01]}  Nf5 {[%clk 0:01:02]} 23. dxe5 {[%clk 0:01:48]}  Nxe5 {[%clk 0:01:03]} 24. Nxe5 {[%clk 0:01:44]}  fxe5 {[%clk 0:00:48]} 25. hxg6 {[%clk 0:01:42]}  hxg6 {[%clk 0:00:48]} 26. Qh3+ {[%clk 0:01:40]}  Kg8 {[%clk 0:00:48]} 27. Ng5 {[%clk 0:01:39]}  Bf6 {[%clk 0:00:45]} 28. Ne4 {[%clk 0:01:22]}  Bxe4 {[%clk 0:00:40]} 29. Rxe4 {[%clk 0:01:20]}  Qh7 {[%clk 0:00:34]} 30. Qxh7+ {[%clk 0:01:06]}  Kxh7 {[%clk 0:00:34]} 31. Ree1 {[%clk 0:01:02]}  Rd4 {[%clk 0:00:33]} 32. Bc3 {[%clk 0:00:58]}  Rxa4 {[%clk 0:00:27]} 33. Bb5 {[%clk 0:00:57]}  Rf4 {[%clk 0:00:25]} 34. g3 {[%clk 0:00:57]}  Rg4 {[%clk 0:00:21]} 35. Rd7+ {[%clk 0:00:55]}  Kh6 {[%clk 0:00:17]} 36. Kg2 {[%clk 0:00:52]}  Nd4 {[%clk 0:00:16]} 37. Rh1+ {[%clk 0:00:51]}  Kg5 {[%clk 0:00:15]} 38. Bd3 {[%clk 0:00:50]}  e4 {[%clk 0:00:14]} 39. Rd5+ {[%clk 0:00:45]}  Nf5 {[%clk 0:00:12]} 40. Bd2+ {[%clk 0:00:46]} 1-0


[Site "https://www.chess.com"]

[Event "Titled Tuesday Blitz December 14 2021"]
[White "Karttunen, Mika"]
[Black "Supatashvili, Khvicha"]
[WhiteFideId "502081"]
[BlackFideId "13600664"]
[WhiteElo "2343"]
[BlackElo "2715"]
[Result "1-0"]
[Round "02"]
[TimeControl "180+1"]
[Date "2021.12.15"]
[WhiteClock "0:00:02"]
[BlackClock "0:00:02"]

1. d4 {[%clk 0:03:00]}  Nf6 {[%clk 0:02:58]} 2. c4 {[%clk 0:03:00]}  e6 {[%clk 0:02:58]} 3. Nc3 {[%clk 0:02:57]}  Bb4 {[%clk 0:02:58]} 4. e3 {[%clk 0:02:57]}  c5 {[%clk 0:02:57]} 5. Bd3 {[%clk 0:02:54]}  Nc6 {[%clk 0:02:55]} 6. Nf3 {[%clk 0:02:52]}  d5 {[%clk 0:02:54]} 7. a3 {[%clk 0:02:49]}  Bxc3+ {[%clk 0:02:43]} 8. bxc3 {[%clk 0:02:48]}  O-O {[%clk 0:02:43]} 9. O-O {[%clk 0:02:45]}  dxc4 {[%clk 0:02:35]} 10. Bxc4 {[%clk 0:02:45]}  b6 {[%clk 0:02:35]} 11. Re1 {[%clk 0:02:41]}  Bb7 {[%clk 0:01:59]} 12. Ba2 {[%clk 0:02:19]}  Na5 {[%clk 0:01:52]} 13. Ne5 {[%clk 0:01:51]}  Rc8 {[%clk 0:01:50]} 14. Bb2 {[%clk 0:01:50]}  cxd4 {[%clk 0:01:42]} 15. cxd4 {[%clk 0:01:24]}  Bd5 {[%clk 0:01:42]} 16. a4 {[%clk 0:00:54]}  Bxa2 {[%clk 0:01:38]} 17. Rxa2 {[%clk 0:00:54]}  Qd5 {[%clk 0:01:37]} 18. Qb1 {[%clk 0:00:47]}  Ne4 {[%clk 0:01:17]} 19. Ra3 {[%clk 0:00:26]}  f6 {[%clk 0:01:13]} 20. Nd3 {[%clk 0:00:18]}  Nc4 {[%clk 0:01:03]} 21. Ra1 {[%clk 0:00:14]}  Ned2 {[%clk 0:00:35]} 22. Qd1 {[%clk 0:00:12]}  Nxb2 {[%clk 0:00:32]} 23. Nxb2 {[%clk 0:00:12]}  Ne4 {[%clk 0:00:29]} 24. Nd3 {[%clk 0:00:11]}  Rc3 {[%clk 0:00:27]} 25. Nf4 {[%clk 0:00:10]}  Qd6 {[%clk 0:00:25]} 26. Qb1 {[%clk 0:00:09]}  f5 {[%clk 0:00:23]} 27. Qa2 {[%clk 0:00:08]}  Re8 {[%clk 0:00:20]} 28. Rac1 {[%clk 0:00:08]}  Qc6 {[%clk 0:00:18]} 29. Qb2 {[%clk 0:00:06]}  Rc8 {[%clk 0:00:16]} 30. Rxc3 {[%clk 0:00:06]}  Nxc3 {[%clk 0:00:16]} 31. Qb3 {[%clk 0:00:04]}  Nd5 {[%clk 0:00:16]} 32. Nd3 {[%clk 0:00:03]}  Qc3 {[%clk 0:00:15]} 33. Qd1 {[%clk 0:00:03]}  h6 {[%clk 0:00:13]} 34. h3 {[%clk 0:00:03]}  Kh7 {[%clk 0:00:13]} 35. Rf1 {[%clk 0:00:03]}  Qa3 {[%clk 0:00:12]} 36. Ne5 {[%clk 0:00:03]}  Qd6 {[%clk 0:00:10]} 37. Qh5 {[%clk 0:00:03]}  Qe7 {[%clk 0:00:09]} 38. Qg6+ {[%clk 0:00:03]}  Kg8 {[%clk 0:00:09]} 39. Qg3 {[%clk 0:00:02]}  Qf6 {[%clk 0:00:09]} 40. Qf3 {[%clk 0:00:02]}  f4 {[%clk 0:00:08]} 41. e4 {[%clk 0:00:02]}  Nc3 {[%clk 0:00:07]} 42. Rc1 {[%clk 0:00:02]}  Ne2+ {[%clk 0:00:07]} 43. Qxe2 {[%clk 0:00:02]}  Rxc1+ {[%clk 0:00:07]} 44. Kh2 {[%clk 0:00:02]}  Rc8 {[%clk 0:00:06]} 45. Qf3 {[%clk 0:00:02]}  Rd8 {[%clk 0:00:04]} 46. Qc3 {[%clk 0:00:02]}  f3 {[%clk 0:00:02]} 47. g3 {[%clk 0:00:02]} 1-0


[Site "https://www.chess.com"]

[Event "Titled Tuesday Blitz December 14 2021"]
[White "King, Alexander"]
[Black "Sipila, Vilka"]
[WhiteFideId "2063620"]
[BlackFideId "505455"]
[WhiteElo "2306"]
[BlackElo "2334"]
[Result "0-1"]
[Round "02"]
[TimeControl "180+1"]
[Date "2021.12.15"]
[WhiteClock "0:00:05"]
[BlackClock "0:00:07"]

1. d4 {[%clk 0:03:00]}  f5 {[%clk 0:02:54]} 2. Nf3 {[%clk 0:02:58]}  Nf6 {[%clk 0:02:54]} 3. g3 {[%clk 0:02:58]}  g6 {[%clk 0:02:55]} 4. Bg2 {[%clk 0:02:59]}  Bg7 {[%clk 0:02:55]} 5. O-O {[%clk 0:03:00]}  O-O {[%clk 0:02:56]} 6. b3 {[%clk 0:03:00]}  d6 {[%clk 0:02:57]} 7. Bb2 {[%clk 0:03:01]}  c6 {[%clk 0:02:58]} 8. c4 {[%clk 0:03:01]}  Na6 {[%clk 0:02:58]} 9. Nc3 {[%clk 0:03:01]}  Qc7 {[%clk 0:02:57]} 10. Qd3 {[%clk 0:02:49]}  e5 {[%clk 0:02:57]} 11. e4 {[%clk 0:02:47]}  Nb4 {[%clk 0:02:56]} 12. Qb1 {[%clk 0:02:45]}  fxe4 {[%clk 0:02:49]} 13. Nxe4 {[%clk 0:02:36]}  Nxe4 {[%clk 0:02:49]} 14. Qxe4 {[%clk 0:02:34]}  Bf5 {[%clk 0:02:45]} 15. Qh4 {[%clk 0:02:32]}  Bf6 {[%clk 0:02:34]} 16. Qh6 {[%clk 0:02:29]}  Bd3 {[%clk 0:02:08]} 17. Rfd1 {[%clk 0:02:05]}  e4 {[%clk 0:01:52]} 18. Ne1 {[%clk 0:01:46]}  d5 {[%clk 0:01:47]} 19. Qd2 {[%clk 0:01:46]}  Qe7 {[%clk 0:01:37]} 20. c5 {[%clk 0:01:42]}  Na6 {[%clk 0:00:57]} 21. Nxd3 {[%clk 0:01:42]}  exd3 {[%clk 0:00:58]} 22. Qxd3 {[%clk 0:01:42]}  Nxc5 {[%clk 0:00:57]} 23. Qc2 {[%clk 0:01:24]}  Ne6 {[%clk 0:00:56]} 24. a4 {[%clk 0:01:05]}  Qg7 {[%clk 0:00:55]} 25. Qd3 {[%clk 0:00:50]}  Rae8 {[%clk 0:00:55]} 26. b4 {[%clk 0:00:45]}  Rf7 {[%clk 0:00:40]} 27. Rac1 {[%clk 0:00:41]}  Rfe7 {[%clk 0:00:38]} 28. Rc2 {[%clk 0:00:38]}  a6 {[%clk 0:00:36]} 29. b5 {[%clk 0:00:34]}  axb5 {[%clk 0:00:37]} 30. axb5 {[%clk 0:00:35]}  Ng5 {[%clk 0:00:34]} 31. h4 {[%clk 0:00:28]}  Re1+ {[%clk 0:00:32]} 32. Rxe1 {[%clk 0:00:27]}  Rxe1+ {[%clk 0:00:33]} 33. Kh2 {[%clk 0:00:27]}  Ne4 {[%clk 0:00:30]} 34. bxc6 {[%clk 0:00:27]}  bxc6 {[%clk 0:00:30]} 35. Bxe4 {[%clk 0:00:26]}  Rxe4 {[%clk 0:00:26]} 36. Rxc6 {[%clk 0:00:26]}  h5 {[%clk 0:00:16]} 37. Qb3 {[%clk 0:00:22]}  Qf7 {[%clk 0:00:15]} 38. Rd6 {[%clk 0:00:09]}  Bxh4 {[%clk 0:00:13]} 39. Qxd5 {[%clk 0:00:07]}  Qxd5 {[%clk 0:00:12]} 40. Rxd5 {[%clk 0:00:08]}  Bf6 {[%clk 0:00:12]} 41. Kg2 {[%clk 0:00:07]}  Re2 {[%clk 0:00:12]} 42. Bc3 {[%clk 0:00:07]}  Rc2 {[%clk 0:00:13]} 43. Rc5 {[%clk 0:00:08]}  Kf7 {[%clk 0:00:12]} 44. Kf3 {[%clk 0:00:03]}  Be7 {[%clk 0:00:12]} 45. Rc7 {[%clk 0:00:03]}  Ke6 {[%clk 0:00:11]} 46. Ke3 {[%clk 0:00:03]}  Bd6 {[%clk 0:00:11]} 47. Rc8 {[%clk 0:00:03]}  Kd7 {[%clk 0:00:10]} 48. Rc4 {[%clk 0:00:03]}  Ke6 {[%clk 0:00:11]} 49. Kd3 {[%clk 0:00:03]}  Rxf2 {[%clk 0:00:11]} 50. Bd2 {[%clk 0:00:02]}  Rf3+ {[%clk 0:00:11]} 51. Ke4 {[%clk 0:00:02]}  Rxg3 {[%clk 0:00:11]} 52. Rc6 {[%clk 0:00:02]}  Rg4+ {[%clk 0:00:11]} 53. Kd3 {[%clk 0:00:01]}  Kd5 {[%clk 0:00:11]} 54. Ra6 {[%clk 0:00:01]}  Rxd4+ {[%clk 0:00:11]} 55. Ke2 {[%clk 0:00:02]}  Re4+ {[%clk 0:00:11]} 56. Kf3 {[%clk 0:00:03]}  Re6 {[%clk 0:00:12]} 57. Ra5+ {[%clk 0:00:03]}  Kc4 {[%clk 0:00:11]} 58. Ra4+ {[%clk 0:00:04]}  Kd3 {[%clk 0:00:11]} 59. Bg5 {[%clk 0:00:04]}  Re5 {[%clk 0:00:11]} 60. Bh4 {[%clk 0:00:03]}  Rf5+ {[%clk 0:00:12]} 61. Kg2 {[%clk 0:00:04]}  g5 {[%clk 0:00:12]} 62. Bf2 {[%clk 0:00:03]}  Ke2 {[%clk 0:00:12]} 63. Re4+ {[%clk 0:00:03]}  Kd3 {[%clk 0:00:12]} 64. Re6 {[%clk 0:00:04]}  Bf4 {[%clk 0:00:12]} 65. Rh6 {[%clk 0:00:04]}  h4 {[%clk 0:00:11]} 66. Kh3 {[%clk 0:00:05]}  Rf8 {[%clk 0:00:07]} 67. Bxh4 {[%clk 0:00:05]}  g4+ {[%clk 0:00:07]} 0-1


[Site "https://www.chess.com"]

[Event "Titled Tuesday Blitz December 14 2021"]
[White "Koellner, Ruben Gideon"]
[Black "Rasulov, Vugar"]
[WhiteFideId "12993093"]
[BlackFideId "13402390"]
[WhiteElo "2572"]
[BlackElo "2560"]
[Result "0-1"]
[Round "02"]
[TimeControl "180+1"]
[Date "2021.12.14"]
[WhiteClock "0:00:01"]
[BlackClock "0:01:10"]

1. d4 {[%clk 0:03:00]}  Nf6 {[%clk 0:02:59]} 2. Bg5 {[%clk 0:02:59]}  e6 {[%clk 0:02:57]} 3. Nd2 {[%clk 0:02:58]}  h6 {[%clk 0:02:56]} 4. Bh4 {[%clk 0:02:57]}  c5 {[%clk 0:02:57]} 5. e4 {[%clk 0:02:56]}  d5 {[%clk 0:02:53]} 6. e5 {[%clk 0:02:56]}  g5 {[%clk 0:02:53]} 7. Bg3 {[%clk 0:02:56]}  Nfd7 {[%clk 0:02:53]} 8. h4 {[%clk 0:02:51]}  Nc6 {[%clk 0:02:44]} 9. hxg5 {[%clk 0:02:43]}  Nxd4 {[%clk 0:02:44]} 10. Ngf3 {[%clk 0:02:03]}  Nf5 {[%clk 0:02:44]} 11. Bf4 {[%clk 0:02:03]}  Bg7 {[%clk 0:02:37]} 12. Bd3 {[%clk 0:01:59]}  hxg5 {[%clk 0:02:23]} 13. Rxh8+ {[%clk 0:01:55]}  Bxh8 {[%clk 0:02:24]} 14. Bxg5 {[%clk 0:01:52]}  Qb6 {[%clk 0:02:24]} 15. Bxf5 {[%clk 0:01:48]}  exf5 {[%clk 0:02:25]} 16. Nb3 {[%clk 0:01:28]}  c4 {[%clk 0:02:18]} 17. Nbd4 {[%clk 0:01:25]}  Nxe5 {[%clk 0:02:16]} 18. Qe2 {[%clk 0:01:14]}  Be6 {[%clk 0:02:15]} 19. c3 {[%clk 0:00:41]}  Nd3+ {[%clk 0:02:10]} 20. Kf1 {[%clk 0:00:34]}  Kd7 {[%clk 0:02:10]} 21. b4 {[%clk 0:00:25]}  Bg7 {[%clk 0:02:04]} 22. g3 {[%clk 0:00:22]}  Rh8 {[%clk 0:02:00]} 23. Kg2 {[%clk 0:00:22]}  f4 {[%clk 0:01:52]} 24. Rh1 {[%clk 0:00:15]}  Rxh1 {[%clk 0:01:51]} 25. Kxh1 {[%clk 0:00:16]}  fxg3 {[%clk 0:01:51]} 26. fxg3 {[%clk 0:00:17]}  a5 {[%clk 0:01:45]} 27. a3 {[%clk 0:00:16]}  axb4 {[%clk 0:01:45]} 28. axb4 {[%clk 0:00:17]}  Qa6 {[%clk 0:01:45]} 29. Kg2 {[%clk 0:00:17]}  Qa1 {[%clk 0:01:43]} 30. Bd2 {[%clk 0:00:18]}  Qb2 {[%clk 0:01:35]} 31. Qe3 {[%clk 0:00:12]}  Bf6 {[%clk 0:01:26]} 32. Nb5 {[%clk 0:00:05]}  Bd8 {[%clk 0:01:20]} 33. Nbd4 {[%clk 0:00:01]}  Bb6 {[%clk 0:01:18]} 34. Qh6 {[%clk 0:00:02]}  Qb1 {[%clk 0:01:12]} 35. Qe3 {[%clk 0:00:01]}  Qd1 {[%clk 0:01:10]} 0-1


[Site "https://www.chess.com"]

[Event "Titled Tuesday Blitz December 14 2021"]
[White "Lavrov, Maxim"]
[Black "Kekic, Armin"]
[WhiteFideId "4166418"]
[BlackFideId "14401274"]
[WhiteElo "2192"]
[BlackElo "2350"]
[Result "1/2-1/2"]
[Round "02"]
[TimeControl "180+1"]
[Date "2021.12.15"]
[WhiteClock "0:00:08"]
[BlackClock "0:00:10"]

1. Nf3 {[%clk 0:03:00]}  d6 {[%clk 0:02:58]} 2. g3 {[%clk 0:03:01]}  e5 {[%clk 0:02:58]} 3. Bg2 {[%clk 0:02:57]}  Nc6 {[%clk 0:02:59]} 4. O-O {[%clk 0:02:56]}  Nf6 {[%clk 0:03:00]} 5. d4 {[%clk 0:02:54]}  Be7 {[%clk 0:03:01]} 6. dxe5 {[%clk 0:02:53]}  Nxe5 {[%clk 0:03:02]} 7. Nxe5 {[%clk 0:02:52]}  dxe5 {[%clk 0:03:02]} 8. Qxd8+ {[%clk 0:02:52]}  Bxd8 {[%clk 0:03:02]} 9. Nc3 {[%clk 0:02:52]}  c6 {[%clk 0:03:02]} 10. f4 {[%clk 0:02:52]}  exf4 {[%clk 0:02:59]} 11. Bxf4 {[%clk 0:02:48]}  Bb6+ {[%clk 0:02:57]} 12. Kh1 {[%clk 0:02:47]}  Be6 {[%clk 0:02:58]} 13. e4 {[%clk 0:02:41]}  O-O-O {[%clk 0:02:57]} 14. Na4 {[%clk 0:02:38]}  Nd7 {[%clk 0:02:47]} 15. Nxb6+ {[%clk 0:02:35]}  Nxb6 {[%clk 0:02:42]} 16. a4 {[%clk 0:02:35]}  f6 {[%clk 0:02:26]} 17. b3 {[%clk 0:02:27]}  Nd7 {[%clk 0:02:25]} 18. Be3 {[%clk 0:02:15]}  a6 {[%clk 0:02:24]} 19. b4 {[%clk 0:01:58]}  Bc4 {[%clk 0:02:10]} 20. Rfd1 {[%clk 0:01:55]}  Ne5 {[%clk 0:02:11]} 21. Bb6 {[%clk 0:01:53]}  Rxd1+ {[%clk 0:02:10]} 22. Rxd1 {[%clk 0:01:54]}  Be6 {[%clk 0:02:10]} 23. Bf1 {[%clk 0:01:33]}  Nc4 {[%clk 0:02:04]} 24. Bxc4 {[%clk 0:01:19]}  Bxc4 {[%clk 0:02:05]} 25. Kg1 {[%clk 0:01:19]}  Re8 {[%clk 0:02:01]} 26. Kf2 {[%clk 0:01:18]}  Be6 {[%clk 0:01:58]} 27. Rd6 {[%clk 0:01:16]}  Bd7 {[%clk 0:01:57]} 28. Kf3 {[%clk 0:01:13]}  f5 {[%clk 0:01:45]} 29. exf5 {[%clk 0:01:09]}  Bxf5 {[%clk 0:01:46]} 30. c3 {[%clk 0:01:07]}  Bd7 {[%clk 0:01:43]} 31. g4 {[%clk 0:01:01]}  Re6 {[%clk 0:01:42]} 32. Rd4 {[%clk 0:00:59]}  g5 {[%clk 0:01:33]} 33. Bc5 {[%clk 0:00:50]}  h6 {[%clk 0:01:27]} 34. Rd6 {[%clk 0:00:46]}  Rxd6 {[%clk 0:00:59]} 35. Bxd6 {[%clk 0:00:47]}  Be8 {[%clk 0:00:59]} 36. Bf8 {[%clk 0:00:41]}  h5 {[%clk 0:00:59]} 37. Be7 {[%clk 0:00:40]}  Kd7 {[%clk 0:00:58]} 38. Bxg5 {[%clk 0:00:40]}  Ke6 {[%clk 0:00:59]} 39. gxh5 {[%clk 0:00:36]}  Bxh5+ {[%clk 0:00:58]} 40. Kf4 {[%clk 0:00:37]}  Be8 {[%clk 0:00:48]} 41. a5 {[%clk 0:00:36]}  Bh5 {[%clk 0:00:45]} 42. Bd8 {[%clk 0:00:35]}  Bd1 {[%clk 0:00:30]} 43. Kg5 {[%clk 0:00:33]}  Be2 {[%clk 0:00:30]} 44. h4 {[%clk 0:00:31]}  Bd1 {[%clk 0:00:29]} 45. h5 {[%clk 0:00:31]}  Bc2 {[%clk 0:00:28]} 46. Bf6 {[%clk 0:00:30]}  Bd1 {[%clk 0:00:25]} 47. Bd4 {[%clk 0:00:26]}  Bc2 {[%clk 0:00:24]} 48. Kh6 {[%clk 0:00:25]}  Kf7 {[%clk 0:00:23]} 49. Kg5 {[%clk 0:00:25]}  Ke6 {[%clk 0:00:23]} 50. h6 {[%clk 0:00:21]}  Bh7 {[%clk 0:00:22]} 51. Kf4 {[%clk 0:00:21]}  Bb1 {[%clk 0:00:20]} 52. Bg7 {[%clk 0:00:20]}  Bh7 {[%clk 0:00:18]} 53. c4 {[%clk 0:00:20]}  Bd3 {[%clk 0:00:15]} 54. Ke3 {[%clk 0:00:20]}  Bh7 {[%clk 0:00:14]} 55. Kd4 {[%clk 0:00:20]}  Bg6 {[%clk 0:00:13]} 56. Kc5 {[%clk 0:00:19]}  Kd7 {[%clk 0:00:13]} 57. Kb6 {[%clk 0:00:18]}  Kc8 {[%clk 0:00:13]} 58. b5 {[%clk 0:00:15]}  cxb5 {[%clk 0:00:13]} 59. cxb5 {[%clk 0:00:16]}  axb5 {[%clk 0:00:13]} 60. Kxb5 {[%clk 0:00:16]}  Bh7 {[%clk 0:00:13]} 61. Kc5 {[%clk 0:00:16]}  Kd7 {[%clk 0:00:13]} 62. Kd5 {[%clk 0:00:17]}  Bd3 {[%clk 0:00:13]} 63. Bd4 {[%clk 0:00:17]}  Ke7 {[%clk 0:00:11]} 64. Bc5+ {[%clk 0:00:15]}  Kd7 {[%clk 0:00:11]} 65. Ke5 {[%clk 0:00:15]}  Kc8 {[%clk 0:00:05]} 66. Kd6 {[%clk 0:00:14]}  Kb8 {[%clk 0:00:06]} 67. Bb6 {[%clk 0:00:14]}  Ka8 {[%clk 0:00:06]} 68. Be3 {[%clk 0:00:14]}  Bc2 {[%clk 0:00:07]} 69. Kc7 {[%clk 0:00:14]}  Bb1 {[%clk 0:00:07]} 70. Bb6 {[%clk 0:00:13]}  Bc2 {[%clk 0:00:08]} 71. Kd7 {[%clk 0:00:13]}  Bb1 {[%clk 0:00:08]} 72. Ke7 {[%clk 0:00:13]}  Bc2 {[%clk 0:00:09]} 73. Kf7 {[%clk 0:00:13]}  Bb1 {[%clk 0:00:10]} 74. Kg7 {[%clk 0:00:13]}  Bc2 {[%clk 0:00:11]} 75. h7 {[%clk 0:00:13]}  Bxh7 {[%clk 0:00:11]} 76. Kxh7 {[%clk 0:00:14]}  Kb8 {[%clk 0:00:12]} 77. Kg6 {[%clk 0:00:15]}  Ka8 {[%clk 0:00:13]} 78. Kf7 {[%clk 0:00:15]}  Kb8 {[%clk 0:00:13]} 79. Ke6 {[%clk 0:00:16]}  Ka8 {[%clk 0:00:14]} 80. Kd7 {[%clk 0:00:16]}  Kb8 {[%clk 0:00:15]} 81. Bc7+ {[%clk 0:00:16]}  Ka8 {[%clk 0:00:16]} 82. Kc8 {[%clk 0:00:16]}  Ka7 {[%clk 0:00:17]} 83. Bb6+ {[%clk 0:00:16]}  Ka8 {[%clk 0:00:17]} 84. Bc5 {[%clk 0:00:14]}  b5 {[%clk 0:00:12]} 85. Bb4 {[%clk 0:00:07]}  Ka7 {[%clk 0:00:12]} 86. Kc7 {[%clk 0:00:07]}  Ka8 {[%clk 0:00:13]} 87. Kb6 {[%clk 0:00:07]}  Kb8 {[%clk 0:00:06]} 88. Ka6 {[%clk 0:00:07]}  Ka8 {[%clk 0:00:07]} 89. Ba3 {[%clk 0:00:07]}  Kb8 {[%clk 0:00:08]} 90. Bd6+ {[%clk 0:00:07]}  Ka8 {[%clk 0:00:09]} 91. Kb6 {[%clk 0:00:07]}  b4 {[%clk 0:00:09]} 92. Bxb4 {[%clk 0:00:07]}  Kb8 {[%clk 0:00:09]} 93. a6 {[%clk 0:00:08]}  Ka8 {[%clk 0:00:10]} 94. a7 {[%clk 0:00:08]} 1/2-1/2


[Site "https://www.chess.com"]

[Event "Titled Tuesday Blitz December 14 2021"]
[White "Laxman, R.R."]
[Black "Martinez Alcantara, Jose Eduardo"]
[WhiteFideId "5005361"]
[BlackFideId "3805662"]
[WhiteElo "2476"]
[BlackElo "2690"]
[Result "1/2-1/2"]
[Round "02"]
[TimeControl "180+1"]
[Date "2021.12.14"]
[WhiteClock "0:01:53"]
[BlackClock "0:00:25"]

1. d4 {[%clk 0:03:00]}  d5 {[%clk 0:02:59]} 2. Nf3 {[%clk 0:03:00]}  Nf6 {[%clk 0:02:58]} 3. c4 {[%clk 0:03:01]}  dxc4 {[%clk 0:02:59]} 4. e3 {[%clk 0:03:01]}  e6 {[%clk 0:03:00]} 5. Bxc4 {[%clk 0:03:01]}  a6 {[%clk 0:03:00]} 6. Bd3 {[%clk 0:03:00]}  c5 {[%clk 0:02:58]} 7. O-O {[%clk 0:03:00]}  Nbd7 {[%clk 0:02:57]} 8. Nc3 {[%clk 0:02:58]}  b5 {[%clk 0:02:57]} 9. a4 {[%clk 0:02:57]}  b4 {[%clk 0:02:56]} 10. Ne4 {[%clk 0:02:57]}  Bb7 {[%clk 0:02:55]} 11. Nxf6+ {[%clk 0:02:57]}  Nxf6 {[%clk 0:02:54]} 12. Qe2 {[%clk 0:02:58]}  cxd4 {[%clk 0:02:45]} 13. exd4 {[%clk 0:02:55]}  Be7 {[%clk 0:02:43]} 14. Bg5 {[%clk 0:02:54]}  O-O {[%clk 0:02:42]} 15. Rad1 {[%clk 0:02:52]}  h6 {[%clk 0:02:39]} 16. Bh4 {[%clk 0:02:52]}  a5 {[%clk 0:02:38]} 17. Ne5 {[%clk 0:02:51]}  Rc8 {[%clk 0:02:21]} 18. Bc4 {[%clk 0:02:46]}  Nd5 {[%clk 0:02:20]} 19. Bg3 {[%clk 0:02:43]}  Nb6 {[%clk 0:02:13]} 20. Nxf7 {[%clk 0:02:31]}  Rxf7 {[%clk 0:02:12]} 21. Bxe6 {[%clk 0:02:32]}  Bd5 {[%clk 0:02:08]} 22. Bxf7+ {[%clk 0:02:32]}  Bxf7 {[%clk 0:02:04]} 23. d5 {[%clk 0:02:31]}  Nxd5 {[%clk 0:02:02]} 24. Rfe1 {[%clk 0:02:30]}  Bf8 {[%clk 0:02:02]} 25. Qb5 {[%clk 0:02:28]}  Rc5 {[%clk 0:01:53]} 26. Qb7 {[%clk 0:02:28]}  Qc8 {[%clk 0:01:51]} 27. Qxc8 {[%clk 0:02:20]}  Rxc8 {[%clk 0:01:50]} 28. Re5 {[%clk 0:02:21]}  Nb6 {[%clk 0:01:36]} 29. Rxa5 {[%clk 0:02:20]}  Nc4 {[%clk 0:01:36]} 30. Rc1 {[%clk 0:02:17]}  Rd8 {[%clk 0:01:29]} 31. Ra7 {[%clk 0:02:15]}  Nxb2 {[%clk 0:01:26]} 32. h4 {[%clk 0:02:16]}  Nd3 {[%clk 0:01:20]} 33. Rd1 {[%clk 0:02:14]}  b3 {[%clk 0:01:21]} 34. Rb7 {[%clk 0:02:13]}  Bc4 {[%clk 0:00:52]} 35. Rc7 {[%clk 0:02:13]}  Rd4 {[%clk 0:00:41]} 36. a5 {[%clk 0:02:05]}  b2 {[%clk 0:00:40]} 37. Rb7 {[%clk 0:02:01]}  Ba6 {[%clk 0:00:33]} 38. Rxb2 {[%clk 0:01:59]}  Ra4 {[%clk 0:00:29]} 39. Rb6 {[%clk 0:01:53]}  Rxa5 {[%clk 0:00:27]} 40. Rxa6 {[%clk 0:01:53]}  Rxa6 {[%clk 0:00:28]} 41. Rxd3 {[%clk 0:01:53]}  Be7 {[%clk 0:00:25]} 1/2-1/2


[Site "https://www.chess.com"]